Cogmind - Beta 15 @@@ ROGUE MODE // 2025.08.22 @ 18:36:31 Player: Mogwok Wargfriend Result: Destroyed by H-88 Terminator with KE Penetrator Performance ------------- Evolutions (9) 4500 Regions Visited (27) 5400 Robots Destroyed (241) 1205 Value Destroyed (6506) 6506 Prototype IDs (93) 1860 Alien Tech Used (1) 200 Bonus (8557) 8557 TOTAL SCORE: 28228 Bonus ------- High Alert Combat Kills 6 Follower Combat Kills 459 Aligned with FarCom 300 Met Zhirov 300 Met Warlord at Base 500 MAIN.C Attacked Warlord 500 Warlord Defense Kills 900 Met Warlord at Research 2000 Invited to Help at Command 2000 Met Warlord at Command 2000 Friendly Fire -408 Cogmind --------- Core Integrity 0/1600 Matter 189/300 Energy 41/100 System Corruption 25% Temperature Cool (0) Movement Core (50) Location -1/Command Parts ------- > --- POWER (2) -------- (None) > --- PROPULSION (7) --- (None) > --- UTILITY (13) ----- Advanced Visual Processing Unit > --- WEAPON (3) ------- (None) > --- INVENTORY (5) ---- Light Antimatter Reactor Graphene Brace Lance Peak State ------------ > --- POWER ------------ Micro Fission Core Micro Antimatter Reactor > --- PROPULSION ------- Xenon Bombardment Thruster Nuclear Pulse Thruster Nuclear Pulse Thruster Diametric Drive Impulse Thruster Array Experimental Q-thruster > --- UTILITY ---------- Experimental Power Amplifier Compact Battery Improved Melee Analysis Suite Advanced Melee Analysis Suite Experimental Melee Analysis Suite Advanced Target Analyzer Improved Core Shielding Centrium Light Armor Plating Graphene Brace Improved Hacking Suite Advanced Hacking Suite Advanced Hacking Suite Advanced System Shield > --- WEAPON ----------- Helical Railgun Plasma Sword Plasma Sword > --- INVENTORY -------- Micro Antimatter Reactor Impulse Thruster Array Advanced Datajack Lance [Rating: 168] Favorites ----------- Power Micro Antimatter Reactor Engine Heavy Ion Engine Power Core Micro Fission Core Reactor Micro Antimatter Reactor Propulsion Wheel Treads Light Treads Leg Titanium Leg Wheel Wheel Hover Unit Improved Antigrav System Flight Unit Cesium-ion Thruster Utility High-capacity Storage Unit Device Transmission Jammer Storage High-capacity Storage Unit Processor Advanced Target Analyzer Hackware Advanced Hacking Suite Protection Core Shielding Weapon Improved Assault Rifle Energy Gun Medium Laser Energy Cannon Advanced Beam Cannon Ballistic Gun Improved Assault Rifle Ballistic Cannon Assault Cannon Launcher Mini Grenade Launcher Special Weapon Improved Plasma Cutter Slashing Weapon Vibroblade Piercing Weapon Lance Special Melee Weapon Improved Datajack Build | -11 -10 -10 -9 -9 -9 -8 -8 -7 -7 -7 -7 -7 -7 -5 -5 -5 -5 -4 -4 -4 -4 -4 -3 -3 -2 -1 -1 ------- Run | Yrd Mat Min Mat Min Exi Min Mat Fac Was Fac Sto Rec Scr Fac Upp Upp War Pro Fac Upp Upp Zhi Pro Res Res Acc Com Slots Evolved 18 | . . . 2 . . . 2 2 . . . . . 4 . . . . 2 . . . . 2 2 2 . Power 1 | . . . . . . . . . . . . . . . . . . . . . . . . 1 . . . Propulsion 5 | . . . . . . . 1 1 . . . . . 1 . . . . 1 . . . . . 1 . . Utility 11 | . . . 1 . . . 1 1 . . . . . 3 . . . . 1 . . . . 1 1 2 . Weapon 1 | . . . 1 . . . . . . . . . . . . . . . . . . . . . . . . Parts Attached 340 | 7 2 4 31 10 1 10 31 14 1 2 20 3 4 9 6 . 7 5 20 . 2 4 4 48 53 24 18 Power 39 | 1 . 2 2 1 . 2 2 1 . . 4 . . 1 1 . 2 . 2 . 1 . 1 10 3 2 1 Engine 13 | 1 . . 1 1 . 1 2 1 . . 3 . . 1 . . 2 . . . . . . . . . . Core 8 | . . 2 1 . . 1 . . . . 1 . . . 1 . . . . . 1 . . . 1 . . Reactor 18 | . . . . . . . . . . . . . . . . . . . 2 . . . 1 10 2 2 1 Propulsion 130 | 2 . 1 12 5 . 3 15 6 . . 10 3 1 3 1 . 1 5 7 . . 1 2 16 16 12 8 Treads 20 | 1 . . 7 2 . . 6 . . . 2 2 . . . . . . . . . . . . . . . Leg 9 | . . 1 . . . . 4 . . . . . . . . . . . . . . 1 . . 3 . . Wheel 26 | 1 . . 4 3 . 3 5 1 . . 6 . . . . . . 3 . . . . . . . . . Hover 36 | . . . . . . . . 3 . . 2 . . 1 . . . 1 5 . . . . 12 3 6 3 Flight 39 | . . . 1 . . . . 2 . . . 1 1 2 1 . 1 1 2 . . . 2 4 10 6 5 Utility 119 | 2 2 . 5 2 1 3 4 5 . 2 5 . 1 5 2 . 4 . 10 . 1 3 1 17 28 10 6 Device 40 | 1 . . . 1 . 1 2 2 . . 2 . 1 . 1 . 1 . 3 . 1 1 . 7 10 3 3 Storage 9 | 1 1 . . . 1 . 1 . . . . . . 1 . . . . . . . . . 2 2 . . Processor 32 | . . . . . . . . 1 . 1 1 . . 4 . . 3 . 3 . . 1 . 6 10 1 1 Hackware 21 | . . . . . . . . 1 . . 1 . . . 1 . . . 4 . . . 1 1 4 6 2 Protection 17 | . 1 . 5 1 . 2 1 1 . 1 1 . . . . . . . . . . 1 . 1 2 . . Artifact . | . . . . . . . . . . . . . . . . . . . . . . . . . . . . Weapon 52 | 2 . 1 12 2 . 2 10 2 1 . 1 . 2 . 2 . . . 1 . . . . 5 6 . 3 Energy Gun 6 | 1 . . . . . . 5 . . . . . . . . . . . . . . . . . . . . Energy Cannon 1 | . . . 1 . . . . . . . . . . . . . . . . . . . . . . . . Ballistic Gun 21 | 1 . 1 10 2 . 2 4 . . . . . . . . . . . . . . . . . 1 . . Ballistic Cannon 2 | . . . . . . . 1 . . . . . . . . . . . . . . . . . . . 1 Launcher 1 | . . . . . . . . . . . . . . . 1 . . . . . . . . . . . . Special Weapon 3 | . . . . . . . . 1 . . . . . . . . . . . . . . . . 2 . . Impact Weapon . | . . . . . . . . . . . . . . . . . . . . . . . . . . . . Slashing Weapon 10 | . . . . . . . . 1 . . 1 . 1 . 1 . . . . . . . . 3 2 . 1 Piercing Weapon 4 | . . . . . . . . . . . . . . . . . . . 1 . . . . 2 1 . . Special Melee Weapon 4 | . . . 1 . . . . . 1 . . . 1 . . . . . . . . . . . . . 1 Unidentified Prototypes 32 | . . . 4 . . . 4 2 . . 1 . . . . . 2 . 1 . . 4 1 3 10 . . Corrupted Parts 2 | . . . . . . . . . . . . . . . . . . . . . . . . . . 1 1 System Corruption 6 | . . . . . . . . . . . . . . . . . . . . . . . . . . 3 3 Parts Lost 145 | . . . 3 11 . 2 5 . . 1 15 . . . . . . 16 4 . 1 . 4 27 9 34 13 Power 17 | . . . . 1 . . 1 . . . 3 . . . . . . 1 . . 1 . . 6 . 4 . Propulsion 73 | . . . 1 4 . 1 3 . . . 8 . . . . . . 10 2 . . . 2 14 3 17 8 Utility 38 | . . . 1 3 . . . . . . 2 . . . . . . 3 2 . . . 2 6 5 10 4 Weapon 17 | . . . 1 3 . 1 1 . . 1 2 . . . . . . 2 . . . . . 1 1 3 1 Highest Loss Streak 14 | . . . 2 7 . 1 2 . . 1 7 . . . . . . 12 3 . 1 . 3 11 5 14 12 To Critical Strikes . | . . . . . . . . . . . . . . . . . . . . . . . . . . . . Average Backups 10 | 4 14 19 18 16 18 18 18 14 5 5 4 4 5 5 4 5 5 4 4 5 4 4 5 4 4 3 3 Power . | . 1 1 1 1 1 1 . 1 1 1 . . . . . 1 1 1 . 1 . . . 1 1 . 1 Propulsion 2 | 2 3 4 4 4 6 5 4 3 1 1 1 1 1 . 1 1 1 . . 2 1 . 1 1 1 . . Utility 2 | . 4 3 4 3 3 3 4 3 1 1 1 2 3 2 2 2 2 2 2 1 1 2 1 . 1 . . Weapon 4 | 1 6 10 8 7 7 7 8 5 1 2 1 1 1 1 . 1 1 1 1 1 1 1 1 1 1 . 1 Tool/Special . | . . . . . . . . . . . . . . . . . . . . . . . . . . . . Unused Backups 54 | . 7 3 6 . 1 1 8 16 . . 2 1 . 1 . . 1 1 1 . . . . 1 3 . 1 Power 7 | . . 1 . . . . . 3 . . . . . . . . 1 . . . . . . . 1 . 1 Propulsion 15 | . 1 . 2 . . 1 3 5 . . 2 . . . . . . . . . . . . . 1 . . Utility 11 | . 1 1 . . . . . 4 . . . 1 . 1 . . . 1 1 . . . . . 1 . . Weapon 20 | . 5 1 4 . 1 . 5 4 . . . . . . . . . . . . . . . . . . . Tool/Special 1 | . . . . . . . . . . . . . . . . . . . . . . . . 1 . . . Average Slot Usage (%) 88 | . 100 100 98 80 88 98 95 90 92 99 72 78 89 88 98 100 99 67 59 68 75 79 81 84 85 83 55 Engine 4 | . 14 2 8 6 11 9 7 7 7 7 4 7 7 5 1 . 1 3 . . . . . . . . . Core 1 | . . 11 2 . . 1 . . . . 1 . . . 3 5 3 . . . 1 5 4 1 3 2 . Reactor 1 | . . . . . . . . . . . . . . . . . . . 2 5 3 . . 4 4 3 2 Treads 4 | . 14 3 9 9 11 10 4 4 . . 6 5 1 . . . . . . . . . . . . . . Leg 1 | . . 10 1 . . . 6 . . . . . . . . . . . . . . . . . 1 . . Wheel 6 | . 14 14 10 12 11 10 14 12 . . 8 15 4 . . . . 1 . . . . . . . . . Hover 4 | . . . . . . . . 3 23 23 2 . . 2 . . . 1 8 10 13 16 16 13 3 7 4 Flight 6 | . . . . . . . . 6 7 7 2 3 18 23 29 29 29 14 4 5 5 5 7 5 18 14 7 Device 8 | . 13 . . 4 11 11 15 16 23 12 7 15 14 10 11 11 8 3 4 . 4 5 2 5 7 10 3 Storage 5 | . 14 14 11 11 11 11 9 4 . . . . . 3 5 5 5 3 . . . . . 1 3 3 . Processor 9 | . . . . . . . . . . 3 11 7 7 14 16 11 15 23 29 26 26 26 26 20 19 8 4 Hackware 6 | . . . . . . . . 6 7 7 7 7 7 5 5 11 8 3 5 15 15 15 14 14 5 20 29 Protection 7 | . . 14 21 8 . 10 9 7 7 13 5 7 7 5 5 5 5 3 . . . . 2 2 4 4 . Energy Gun 2 | . 14 14 . . . . 6 4 . . . . . . . . . . . . . . . . . . . Ballistic Gun 9 | . 14 14 32 28 33 33 13 4 . . . . . . . . . . . . . . . . 1 2 . Slashing Weapon 3 | . . . . . . . . 1 7 7 9 7 12 11 11 11 11 4 . . . . . 4 4 4 . Piercing Weapon 1 | . . . . . . . . . . . . . . . . . . . 2 5 5 5 5 6 4 1 1 Peak Build Rating 168 | 7 9 12 20 19 18 23 33 44 45 48 45 33 45 61 70 70 92 93 110 95 112 112 114 148 161 168 125 Average Rating 60 | 5 8 10 16 15 17 21 27 38 42 46 33 30 38 55 65 70 78 64 73 95 103 106 109 125 128 142 98 On Entrance 54 | . 7 9 12 19 17 18 21 33 42 45 42 25 33 41 61 70 70 91 32 95 95 105 112 108 104 158 69 Naked Turns . | . . . . . . . . . . . . . . . . . . . . . . . . . . . . Heaviest Build 66 | 15 50 52 61 61 53 58 66 66 16 17 25 11 15 17 19 19 22 22 14 12 17 14 14 43 43 37 24 Greatest Support 90 | 10 10 10 10 40 10 16 26 24 24 24 40 20 20 21 23 22 22 30 45 15 35 35 21 48 90 64 31 Greatest Overweight (x) 10 | 1 4 5 6 6 5 5 6 3 . . 3 . . . . . . 1 1 . . . . 10 1 1 1 Average Overweight (x) . | . 3 4 5 4 5 4 3 1 . . . . . . . . . . . . . . . . . . . Largest Inventory Capacity 25 | 8 20 20 20 20 20 20 20 20 5 5 5 5 5 5 5 5 5 5 5 5 5 5 5 5 25 5 5 Average Capacity 11 | 7 18 20 20 20 20 20 20 15 5 5 5 5 5 5 5 5 5 5 5 5 5 5 5 5 5 5 5 Most Carried 20 | 8 20 20 20 20 20 20 20 20 5 5 5 5 5 5 5 5 5 5 5 5 5 5 5 5 5 5 5 Average Carried 10 | 4 14 19 19 17 19 19 19 15 4 4 4 4 5 4 4 5 4 4 4 5 4 4 4 4 4 4 3 Final Capacity 20 | 8 20 20 20 20 20 20 20 5 5 5 5 5 5 5 5 5 5 5 5 5 5 5 5 5 5 5 5 Final Carried 20 | 8 20 20 20 19 20 20 20 5 5 5 4 5 5 5 5 5 5 5 5 5 4 5 5 5 5 2 3 Class Distribution -------------------- 16% | Mutant 11% | Hacker-Gladiator 11% | Skirmisher 10% | Scavenger-Skirmisher 9% | Scavenger-Sprinter 7% | Tank 5% | Scavenger-Mutant 5% | Scavenger-Gladiator 4% | Hacker-Mutant 3% | Hacker-Sprinter Dominant Class ---------------- Mutant | -10/Materials Mutant | -10/Mines Tank | -9/Materials Skirmisher | -9/Mines Skirmisher | -9/Exiles Scavenger-Skirmisher | -8/Mines Scavenger-Skirmisher | -8/Materials Skirmisher | -7/Factory Scavenger-Mutant | -7/Waste Mutant | -7/Factory Scavenger-Gladiator | -7/Storage Scavenger-Mutant | -7/Recycling Scavenger-Sprinter | -7/Scraptown Scavenger-Ninja | -5/Factory Scavenger-Sprinter | -5/Upper Caves Hacker-Sprinter | -5/Upper Caves Commander-Sprinter | -5/Warlord Mutant | -4/Proximity Caves Scavenger-Assassin | -4/Factory Hacker-Mutant | -4/Upper Caves Hacker-Mutant | -4/Upper Caves Hacker-Mutant | -4/Zhirov Hacker-Mutant | -3/Proximity Caves Hacker-Gladiator | -3/Research Scavenger-Sprinter | -2/Research Hacker-Sprinter | -1/Access Wizard-Mutant | -1/Command Resources | -11 -10 -10 -9 -9 -9 -8 -8 -7 -7 -7 -7 -7 -7 -5 -5 -5 -5 -4 -4 -4 -4 -4 -3 -3 -2 -1 -1 ----------- Run | Yrd Mat Min Mat Min Exi Min Mat Fac Was Fac Sto Rec Scr Fac Upp Upp War Pro Fac Upp Upp Zhi Pro Res Res Acc Com Matter Collected 6916 | 348 157 101 1474 343 . 359 1081 112 90 20 249 49 50 120 140 . 80 30 165 45 40 . 135 621 791 243 73 Remotely 132 | . . . . . . . . 32 90 . . . . . . . . . . . . . . . 10 . . Salvage Created 9915 | 212 534 187 2048 330 . 465 1477 111 . 104 750 . . 254 86 . 293 49 256 . . . 84 1880 283 512 . Parts 592 | 13 46 7 134 17 . 24 81 7 . 10 55 . . 14 7 . 10 . 12 . . . 3 111 12 29 . Haulers Intercepted 13 | . 2 . 6 . . . 5 . . . . . . . . . . . . . . . . . . . . Recyclers Shooed 13 | . 3 . 4 1 . . 2 . . . . . . 1 . . . . . . . . . 1 . 1 . Parts Field Recycled . | . . . . . . . . . . . . . . . . . . . . . . . . . . . . Retrieved Matter . | . . . . . . . . . . . . . . . . . . . . . . . . . . . . Parts Self-Destructed 7 | . . . . . . . . . . . . . . . 3 . . 1 . . . . 3 . . . . Prevented . | . . . . . . . . . . . . . . . . . . . . . . . . . . . . Kills | -11 -10 -10 -9 -9 -9 -8 -8 -7 -7 -7 -7 -7 -7 -5 -5 -5 -5 -4 -4 -4 -4 -4 -3 -3 -2 -1 -1 ------- Run | Yrd Mat Min Mat Min Exi Min Mat Fac Was Fac Sto Rec Scr Fac Upp Upp War Pro Fac Upp Upp Zhi Pro Res Res Acc Com Combat Hostiles Destroyed 122 | . 13 2 24 11 . 7 14 . . 1 7 . . . 4 . 6 2 2 . . . 3 16 2 8 . Melee 46 | . . . . . . . . . . 1 7 . . . . . 6 2 2 . . . 3 16 2 7 . Guns 70 | . 13 2 24 11 . 7 12 . . . . . . . . . . . . . . . . . . 1 . Cannons 1 | . . . . . . . 1 . . . . . . . . . . . . . . . . . . . . AOE 4 | . . . . . . . . . . . . . . . 4 . . . . . . . . . . . . Classes Destroyed 19 | 3 5 . 3 1 . 2 . . . . 1 . . . 1 . 2 . . . . . . 1 . . . Worker 34 | 2 2 4 13 . . . 8 . . . 2 . . 2 . . . . . . . . . 1 . . . Builder 20 | . 3 . 2 3 . . 3 1 . 2 5 . . . . . . . . . . . . 1 . . . Tunneler 5 | 3 . 1 . 1 . . . . . . . . . . . . . . . . . . . . . . . Hauler 13 | . 2 . 6 . . . 5 . . . . . . . . . . . . . . . . . . . . Recycler 24 | 1 1 . 5 1 . 1 5 1 . . 2 . . 1 . . . . 1 . . . . 3 1 1 . Minesweeper 1 | . . . . . . . . . . . . . . . 1 . . . . . . . . . . . . Mechanic 2 | . . . . . . . . . . . . . . . . . . . . . . . . 2 . . . Operator 5 | . . . 1 . . . . . . . 1 . . . . . . . . . . . . . 1 2 . Watcher 23 | . 3 . 5 . . . 3 1 . 1 . . . 2 . . . . 1 . . . . 7 . . . Swarmer 39 | . 12 . 6 3 . . 3 . . 1 . . . . 4 . . 2 . . . . 3 . . 5 . Grunt 23 | . 1 2 8 . . 4 4 . . . . . . . . . 3 . . . . . . . 1 . . Brawler 2 | . . . 2 . . . . . . . . . . . . . . . . . . . . . . . . Duelist 3 | . . . . . . 2 1 . . . . . . . . . . . . . . . . . . . . Sentry 21 | . . . 8 . . . 4 . . . 5 . . . . . . . . . . . . 3 1 . . Hunter 4 | . . . . . . 1 2 . . . 1 . . . . . . . . . . . . . . . . Programmer 20 | . . . . . . . . . . . 1 . . . . . 1 . 2 . . . . 13 . 3 . Striker 1 | . . . . . . . . . . . . . . . . . 1 . . . . . . . . . . Executioner 1 | . . . . . . . . . . . . . . . . . 1 . . . . . . . . . . Assembled 8 | . . . . 8 . . . . . . . . . . . . . . . . . . . . . . . Best Kill Streak 8 | 4 5 3 8 8 . 3 7 1 . 2 4 . . 2 5 . 3 2 3 . . . 3 4 1 5 . Combat Bots Only 8 | . 3 2 4 8 . 3 3 . . 1 2 . . . 4 . 3 2 2 . . . 3 3 1 5 . Max Kills in Single Turn 3 | 1 2 2 2 2 . 1 2 1 . 1 1 . . 1 3 . 1 1 1 . . . 1 1 1 1 . Gunslinging 1 | . . . 1 1 . . . . . . . . . . . . . . . . . . . . . . . Exploded 3 | . . . . . . . . . . . . . . . 3 . . . . . . . . . . . . Melee 1 | . . . . . . . . . . 1 1 . . . . . 1 1 1 . . . 1 1 1 1 . Uniques/NPCs Destroyed . | . . . . . . . . . . . . . . . . . . . . . . . . . . . . Combat | -11 -10 -10 -9 -9 -9 -8 -8 -7 -7 -7 -7 -7 -7 -5 -5 -5 -5 -4 -4 -4 -4 -4 -3 -3 -2 -1 -1 -------- Run | Yrd Mat Min Mat Min Exi Min Mat Fac Was Fac Sto Rec Scr Fac Upp Upp War Pro Fac Upp Upp Zhi Pro Res Res Acc Com Hostile Shots Fired 1540 | . 49 14 133 98 . 41 84 . . 34 239 . . 5 6 5 27 105 38 . 9 . 33 204 25 265 126 Missed 590 | . 19 4 37 30 . 10 17 . . 17 85 . . 3 4 4 18 53 13 . 7 . 18 67 12 117 55 Hits 950 | . 30 10 96 68 . 31 67 . . 17 154 . . 2 2 1 9 52 25 . 2 . 15 137 13 148 71 Melee 24 | . . . 1 5 . 8 . . . . . . . . . . . 6 . . . . . . . . 4 Projectile 926 | . 30 10 95 63 . 23 67 . . 17 154 . . 2 2 1 9 46 25 . 2 . 15 137 13 148 67 AOE 14 | . . . . 9 . . . . . . . . . . . . 1 . . . . . . . . 2 2 Critical Strikes 42 | . 1 . 2 1 . 2 2 . . . . . . . . . . 3 2 . . . 1 11 . 14 3 Actively Blocked 15 | . . . . . . . 1 . . . . . . . . . . . . . . . . . . 14 . Part Disruptions 1 | . . . . . . . . . . . . . . . . . . . . . . . . 1 . . . Damage Taken 17510 | . 247 146 1282 996 . 596 848 66 . 292 1341 . . 41 75 21 233 1183 476 . 43 . 265 3278 755 3538 1788 Core 4574 | . 53 9 79 101 . 93 100 22 . 63 414 . . . 7 . 127 620 240 . . . 45 917 80 865 739 Absorbed by Shields 93 | . . . . . . . . . . . . . . . . . 93 . . . . . . . . . . Redirected to Shielding 528 | . . 2 17 18 . 11 15 . . . 3 . . . . . . 102 . . . . . 259 10 91 . Regen/Repaired (Parts) 181 | . . . . . . . . . . . 41 . . 17 . . 28 . . . . . . 25 . 70 . Core Remaining (%) 59 | 100 . 75 . . . 31 81 . . . . . 28 . . . . 24 . . . . 75 29 94 . . Volleys Fired 371 | 11 49 17 138 29 . 26 84 4 . 3 . . . . 2 . . . . . . . . . 6 2 . Largest 3 | 2 2 2 3 3 . 3 3 3 . 1 . . . . 1 . . . . . . . . . 1 1 . Hottest 150 | 70 70 70 70 69 . 69 150 121 . 20 . . . . 30 . . . . . . . . . 38 38 . Shots Fired 970 | 22 98 34 382 82 . 78 248 12 . 3 . . . . 2 . . . . . . . . . 7 2 . Gun 896 | 22 98 34 382 82 . 78 186 8 . . . . . . . . . . . . . . . . 4 2 . Cannon 66 | . . . . . . . 62 4 . . . . . . . . . . . . . . . . . . . Launcher 2 | . . . . . . . . . . . . . . . 2 . . . . . . . . . . . . Special 6 | . . . . . . . . . . 3 . . . . . . . . . . . . . . 3 . . Kinetic 830 | 11 49 17 378 82 . 78 201 8 . . . . . . . . . . . . . . . . 4 2 . Thermal 135 | 11 49 17 4 . . . 47 4 . 3 . . . . . . . . . . . . . . . . . Explosive 2 | . . . . . . . . . . . . . . . 2 . . . . . . . . . . . . Electromagnetic . | . . . . . . . . . . . . . . . . . . . . . . . . . . . . Robot Hit Streak 17 | 8 9 15 17 10 . 11 17 8 . . . . . . 1 . . . . . . . . . 2 3 . Robot Miss Streak 5 | 1 5 1 4 5 . 2 5 1 . . . . . . 1 . . . . . . . . . 1 1 . Penetration Max . | . . . . . . . . . . . . . . . . . . . . . . . . . . . . Secondary Targets 10 | . 1 1 3 3 . 2 . . . . . . . . . . . . . . . . . . . . . Max Gunslinging Chain 1 | . 1 1 1 1 . 1 . . . . . . . . . . . . . . . . . . . . . Shots Hit Robots 809 | 14 52 22 230 42 . 58 140 5 . 8 39 . 2 8 3 . 33 3 6 . . . 4 91 18 23 8 Core Hits 333 | 7 28 12 84 21 . 21 58 3 . 2 14 . . 2 5 . 7 2 3 . . . 2 42 8 12 . Critical Kills 4 | . . . 3 . . . . . . . . . . . . . . . . . . . . . . 1 . Critical Parts Destroyed 2 | . . . 1 . . . . . . . . . . . . . . . . . . . . . . 1 . Critical Strikes 53 | 2 5 6 4 . . . 3 . . . 2 . . . . . 2 . 1 . . . 2 17 1 8 . Burn 16 | 2 5 6 . . . . 3 . . . . . . . . . . . . . . . . . . . . Destroy 6 | . . . 4 . . . . . . . . . . . . . . . . . . . . . . 2 . Sever 7 | . . . . . . . . . . . 2 . . . . . 2 . . . . . . 2 1 . . Impale 19 | . . . . . . . . . . . . . . . . . . . . . . . . 13 . 6 . Sunder 5 | . . . . . . . . . . . . . . . . . . . 1 . . . 2 2 . . . Melee Attacks 486 | . . . . . . . . 3 . 19 56 . 4 34 4 1 41 6 13 5 4 . 4 166 51 67 8 Impact . | . . . . . . . . . . . . . . . . . . . . . . . . . . . . Slashing 265 | . . . . . . . . 3 . 19 56 . . 34 4 1 17 6 . . . . . 50 44 31 . Piercing 151 | . . . . . . . . . . . . . . . . . . . . . . . . 108 7 36 . Entropic 34 | . . . . . . . . . . . . . . . . . . . 13 5 4 . 4 8 . . . Sneak Attacks 72 | . . . . . . . . . . 4 10 . 2 5 2 . 24 . 1 . . . . 10 2 4 8 Combat Hostiles . | . . . . . . . . . . . . . . . . . . . . . . . . . . . . Follow-up Attacks 37 | . . . . . . . . . . . 2 . . 1 1 . 1 . . . . . . 28 3 1 . Damage Inflicted 20491 | 177 655 299 3269 686 . 819 2229 175 . 388 2400 . . 491 382 . 571 169 582 . . . 386 4835 628 1350 . Guns 7846 | 177 655 298 3269 686 . 819 1811 60 . . . . . . . . . . . . . . . . 20 51 . Cannons 436 | . . . . . . . 412 24 . . . . . . . . . . . . . . . . . . . Explosions 395 | . . . . . . . . . . . . . . . 211 . . . . . . . . . . 184 . Melee 11795 | . . . . . . . . 91 . 388 2400 . . 491 171 . 571 157 582 . . . 386 4835 608 1115 . Ramming 19 | . . 1 . . . . 6 . . . . . . . . . . 12 . . . . . . . . . Kinetic 6997 | 49 320 120 3244 686 . 819 1664 24 . . . . . . . . . . . . . . . . 20 51 . Thermal 1285 | 128 335 178 25 . . . 559 60 . . . . . . . . . . . . . . . . . . . Explosive 395 | . . . . . . . . . . . . . . . 211 . . . . . . . . . . 184 . Electromagnetic . | . . . . . . . . . . . . . . . . . . . . . . . . . . . . Impact . | . . . . . . . . . . . . . . . . . . . . . . . . . . . . Slashing 6964 | . . . . . . . . 91 . 388 2400 . . 491 171 . 571 157 . . . . . 1741 532 422 . Piercing 3583 | . . . . . . . . . . . . . . . . . . . . . . . . 2814 76 693 . Entropic 1248 | . . . . . . . . . . . . . . . . . . . 582 . . . 386 280 . . . Highest Corruption 25 | . . . . 1 1 1 2 . . . 1 1 1 . . . . 2 2 2 2 2 2 19 10 22 25 Average Corruption 6 | . . . . 1 1 1 2 . . . 1 1 1 . . . . 2 1 2 2 2 2 10 10 10 20 Corruption Purged 13 | . . . . . . . . . . . . . . . . . . . . . . . . . . 6 7 Corruption Blocked . | . . . . . . . . . . . . . . . . . . . . . . . . . . . . Effects 179 | . . . . 3 2 7 3 . . . 4 2 . . . . . . 3 2 3 1 2 67 48 17 15 Message Errors 43 | . . . . 1 1 1 1 . . . . . . . . . . . 1 2 1 . . 15 11 5 4 Matter Fused 42 | . . . . 1 1 2 1 . . . 4 1 . . . . . . . . . . . 16 10 2 4 Heat Flow Errors 32 | . . . . . . . . . . . . . . . . . . . 1 . 2 1 1 15 8 3 1 Energy Discharges 16 | . . . . . . 2 . . . . . 1 . . . . . . . . . . . 6 4 2 1 Parts Rejected 4 | . . . . . . . . . . . . . . . . . . . . . . . . . 1 2 1 Parts Fused 1 | . . . . . . . . . . . . . . . . . . . . . . . . . 1 . . Data Loss (minor) 18 | . . . . 1 . 1 . . . . . . . . . . . . . . . . . 8 5 1 2 Data Loss (major) 12 | . . . . . . 1 . . . . . . . . . . . . 1 . . . 1 4 4 1 . Misfires 2 | . . . . . . . 1 . . . . . . . . . . . . . . . . . 1 . . Alerts 5 | . . . . . . . . . . . . . . . . . . . . . . . . 2 2 1 . Misdirections 4 | . . . . . . . . . . . . . . . . . . . . . . . . 1 1 . 2 Overload Shots . | . . . . . . . . . . . . . . . . . . . . . . . . . . . . Overflow Damage 1753 | . . . . . . . 7 12 . 101 382 . . 128 124 . 61 1 97 . . . 93 545 . 202 . Projectiles 7 | . . . . . . . 7 . . . . . . . . . . . . . . . . . . . . Explosions 56 | . . . . . . . . . . . . . . . . . . . . . . . . . . 56 . Melee 1690 | . . . . . . . . 12 . 101 382 . . 128 124 . 61 1 97 . . . 93 545 . 146 . Knockbacks 2 | . . . . . . . 2 . . . . . . . . . . . . . . . . . . . . Impact . | . . . . . . . . . . . . . . . . . . . . . . . . . . . . Kinetic 1 | . . . . . . . 1 . . . . . . . . . . . . . . . . . . . . Secondary 1 | . . . . . . . 1 . . . . . . . . . . . . . . . . . . . . Self-Inflicted Damage 123 | . . . . . . . 3 67 . . . . . . 48 . . 5 . . . . . . . . . Shots 3 | . . . . . . . . 1 . . . . . . 2 . . . . . . . . . . . . Rammed 5 | . . 1 . . . . 1 . . . . . . . . . . 3 . . . . . . . . . Targets Rammed 5 | . . 1 . . . . 1 . . . . . . . . . . 3 . . . . . . . . . Kicked . | . . . . . . . . . . . . . . . . . . . . . . . . . . . . Crushed . | . . . . . . . . . . . . . . . . . . . . . . . . . . . . Highest Temperature 406 | . 4 75 119 55 . 27 54 . . . . . . . . . . 4 107 . 196 185 153 406 245 196 221 Average Temperature 37 | . 3 18 22 20 . 12 11 . . . . . . . . . . 4 64 . 95 96 79 106 100 82 120 Received Heat Transfer 1889 | . 12 84 465 60 . 126 225 . . 57 360 . . . . . 20 246 9 . . . . 117 18 45 45 Siege Activations . | . . . . . . . . . . . . . . . . . . . . . . . . . . . . Martial Activations . | . . . . . . . . . . . . . . . . . . . . . . . . . . . . Shielding Activations . | . . . . . . . . . . . . . . . . . . . . . . . . . . . . Robots Disrupted . | . . . . . . . . . . . . . . . . . . . . . . . . . . . . Combat Hostiles . | . . . . . . . . . . . . . . . . . . . . . . . . . . . . Robots Corrupted . | . . . . . . . . . . . . . . . . . . . . . . . . . . . . Combat Hostiles . | . . . . . . . . . . . . . . . . . . . . . . . . . . . . Parts Fried . | . . . . . . . . . . . . . . . . . . . . . . . . . . . . Impact Corruptions . | . . . . . . . . . . . . . . . . . . . . . . . . . . . . Robots Melted 1 | . . . . . . . 1 . . . . . . . . . . . . . . . . . . . . Combat Hostiles 1 | . . . . . . . 1 . . . . . . . . . . . . . . . . . . . . Parts Melted 13 | 3 4 2 . . . . 4 . . . . . . . . . . . . . . . . . . . . Heat Transferred 4440 | 518 1332 962 74 . . . 1443 111 . . . . . . . . . . . . . . . . . . . Parts Sabotaged 10 | . . . . . . . . . . . . . . . . . . . . . . . . . . . 10 Parts Stolen . | . . . . . . . . . . . . . . . . . . . . . . . . . . . . Parts Stripped . | . . . . . . . . . . . . . . . . . . . . . . . . . . . . Power Chain Reactions . | . . . . . . . . . . . . . . . . . . . . . . . . . . . . Alert | -11 -10 -10 -9 -9 -9 -8 -8 -7 -7 -7 -7 -7 -7 -5 -5 -5 -5 -4 -4 -4 -4 -4 -3 -3 -2 -1 -1 ------- Run | Yrd Mat Min Mat Min Exi Min Mat Fac Was Fac Sto Rec Scr Fac Upp Upp War Pro Fac Upp Upp Zhi Pro Res Res Acc Com Maximum Alert Level 2 | . . . 1 1 . . . . . 2 1 . . . . . . . . . . . . . . 1 . Low Security (%) 86 | 100 100 100 22 84 . 100 100 100 100 17 79 100 . 100 . . . . 100 . . . . 100 100 97 100 Level 1 11 | . . . 77 15 . . . . . 20 20 . . . . . . . . . . . . . . 2 . Level 2 2 | . . . . . . . . . . 61 . . . . . . . . . . . . . . . . . Level 3 . | . . . . . . . . . . . . . . . . . . . . . . . . . . . . Level 4 . | . . . . . . . . . . . . . . . . . . . . . . . . . . . . Level 5 . | . . . . . . . . . . . . . . . . . . . . . . . . . . . . High Security . | . . . . . . . . . . . . . . . . . . . . . . . . . . . . Max Security . | . . . . . . . . . . . . . . . . . . . . . . . . . . . . Peak Influence 667 | 10 144 50 330 212 . 80 148 63 . 667 331 8 . 30 . . . . 84 . . . . 64 63 214 76 Initial 316 | . . . . 122 . . . 63 . . 316 8 . . . . . . 84 . . . . . 20 17 76 Average 76 | 3 59 3 227 73 . 14 65 11 . 436 141 . . 6 . . . . 22 . . . . 15 8 83 33 Influence Increases 7043 | 30 412 75 888 155 . 205 632 114 . 1057 302 . . 198 95 45 412 355 183 . 60 . 70 662 258 745 90 Destroy 0b10 Robot/C 2620 | . 260 40 480 60 . 140 280 . . 340 140 . . . 80 . 140 40 40 . . . 60 320 40 160 . Destroy 0b10 Robot/NC 690 | 30 55 25 160 25 . 5 120 15 . 70 50 . . 25 5 . . . 10 . . . . 70 10 15 . Destroy Leader 666 | . 50 10 172 10 . 30 106 2 . 36 70 . . 4 10 . . . 12 . . . 10 104 10 30 . Allied During Kill 193 | . . . . . . . . . . 176 . . . . . . 17 . . . . . . . . . . Trap Triggered on 0b10 10 | . . . 10 . . . . . . . . . . . . . . . . . . . . . . . . Successful Hack 274 | . 30 . 17 . . . 10 36 . 12 6 . . 36 . . . . 51 . . . . 31 . 30 15 Disable Machine 315 | . . . 15 . . 15 90 30 . 105 . . . 15 . . . . . . . . . . 15 30 . Destroy Structure 520 | . 2 . 4 . . . 26 31 . 153 6 . . 28 . . . . 10 . . . . 62 63 135 . Partial Spotted 165 | . . . . . . . . . . 15 15 . . 60 . . . . 15 . . . . 30 30 . . Lose Combat Pursuer 1590 | . 15 . 30 60 . 15 . . . 150 15 . . 30 . 45 255 315 45 . 60 . . 45 90 345 75 Influence Decreases 7043 | 30 412 75 573 470 . 205 492 254 . 360 977 22 . 191 57 49 256 417 315 3 10 50 70 625 265 655 210 Entered New Map 1093 | . . . . 193 . . . 77 . . 381 14 . . 4 9 41 197 51 2 . 50 . . 17 13 44 Time Decay 4538 | 30 412 75 553 167 . 195 446 177 . 250 446 8 . 185 53 40 148 90 228 1 10 . 50 393 210 250 121 Lost Part 1161 | . . . 20 110 . 10 46 . . 10 150 . . . . . . 130 36 . . . 20 230 18 336 45 Lost Ally 189 | . . . . . . . . . . 100 . . . . . . 67 . . . . . . 2 20 . . Purge Threat 62 | . . . . . . . . . . . . . . 6 . . . . . . . . . . . 56 . Squads Dispatched 48 | . . 1 2 . . . 4 1 . 9 7 . . 2 . . . 1 4 . . . . 8 . 8 1 Investigation 5 | . . 1 . . . . 2 . . 1 . . . 1 . . . . . . . . . . . . . Extermination 22 | . . . . . . . . 1 . 1 3 . . 1 . . . . 3 . . . . 7 . 5 1 Reinforcement 10 | . . . 2 . . . 1 . . 1 1 . . . . . . . 1 . . . . 1 . 3 . Assault 1 | . . . . . . . . . . . . . . . . . . 1 . . . . . . . . . Garrison 10 | . . . . . . . 1 . . 6 3 . . . . . . . . . . . . . . . . Intercept . | . . . . . . . . . . . . . . . . . . . . . . . . . . . . Searches Triggered . | . . . . . . . . . . . . . . . . . . . . . . . . . . . . Construction Impeded . | . . . . . . . . . . . . . . . . . . . . . . . . . . . . Haulers Reinforced 1 | . . . . . . . . . . 1 . . . . . . . . . . . . . . . . . Active Scanning Responses . | . . . . . . . . . . . . . . . . . . . . . . . . . . . . Cargo Convoy Interrupts . | . . . . . . . . . . . . . . . . . . . . . . . . . . . . Stealth | -11 -10 -10 -9 -9 -9 -8 -8 -7 -7 -7 -7 -7 -7 -5 -5 -5 -5 -4 -4 -4 -4 -4 -3 -3 -2 -1 -1 --------- Run | Yrd Mat Min Mat Min Exi Min Mat Fac Was Fac Sto Rec Scr Fac Upp Upp War Pro Fac Upp Upp Zhi Pro Res Res Acc Com Distress Signals 32 | . 1 . 6 2 . . 2 . . 3 1 . . . . . . . 3 . . . . 1 7 4 2 Communications Jammed 44 | . . . . . . . . . . 19 7 . . . . . . . . . . . . 18 . . . Distress Signals 43 | . . . . . . . . . . 19 6 . . . . . . . . . . . . 18 . . . Times Spotted 645 | . 18 5 40 33 . 8 24 2 . 21 22 . . 6 4 3 76 23 17 . 5 . 5 33 28 41 231 Peak Tracking Total 198 | . 4 2 5 20 . 3 4 1 . 11 5 . . 2 4 3 16 11 9 . 5 . 3 5 5 11 198 Tactical Retreats 51 | . 1 . 2 5 . 1 . . . 5 1 . . 2 . 1 5 5 2 . 1 . . 3 3 11 3 Traps | -11 -10 -10 -9 -9 -9 -8 -8 -7 -7 -7 -7 -7 -7 -5 -5 -5 -5 -4 -4 -4 -4 -4 -3 -3 -2 -1 -1 ------- Run | Yrd Mat Min Mat Min Exi Min Mat Fac Was Fac Sto Rec Scr Fac Upp Upp War Pro Fac Upp Upp Zhi Pro Res Res Acc Com Traps Triggered 6 | . . . . . . . 2 1 . 2 1 . . . . . . . . . . . . . . . . Indirectly . | . . . . . . . . . . . . . . . . . . . . . . . . . . . . Trap Hack Attempts 14 | . . . 14 . . . . . . . . . . . . . . . . . . . . . . . . Triggered 1 | . . . 1 . . . . . . . . . . . . . . . . . . . . . . . . Disarmed 7 | . . . . . . . 1 . . . . . . 6 . . . . . . . . . . . . . Reprogrammed 2 | . . . 2 . . . . . . . . . . . . . . . . . . . . . . . . Reused 1 | . . . 1 . . . . . . . . . . . . . . . . . . . . . . . . Traps Extracted . | . . . . . . . . . . . . . . . . . . . . . . . . . . . . Installed 11 | . . . . . . . . . . . . . . . 11 . . . . . . . . . . . . Triggered 1 | . . . 1 . . . . . . . . . . . . . . . . . . . . . . . . Objects Rigged 1 | . . . . . . . . . . . . . . . . . . . . . . . . . . 1 . Exploded 1 | . . . . . . . . . . . . . . . . . . . . . . . . . . 1 . Machines | -11 -10 -10 -9 -9 -9 -8 -8 -7 -7 -7 -7 -7 -7 -5 -5 -5 -5 -4 -4 -4 -4 -4 -3 -3 -2 -1 -1 ---------- Run | Yrd Mat Min Mat Min Exi Min Mat Fac Was Fac Sto Rec Scr Fac Upp Upp War Pro Fac Upp Upp Zhi Pro Res Res Acc Com Machines Disabled 21 | . . . 1 . . 1 6 2 . 7 . . . 1 . . . . . . . . . . 1 2 . Max in Single Turn 1 | . . . 1 . . 1 1 1 . 1 . . . 1 . . . . . . . . . . 1 1 . Garrison Access 3 | . . . . . . . . . . 1 . . . 1 . . . . . . . . . . 1 . . Machines Repaired . | . . . . . . . . . . . . . . . . . . . . . . . . . . . . Machines Dismantled 2 | . . . . . . . . . . 2 . . . . . . . . . . . . . . . . . Machines Sabotaged . | . . . . . . . . . . . . . . . . . . . . . . . . . . . . Overloaded Fab Kills . | . . . . . . . . . . . . . . . . . . . . . . . . . . . . Hacking | -11 -10 -10 -9 -9 -9 -8 -8 -7 -7 -7 -7 -7 -7 -5 -5 -5 -5 -4 -4 -4 -4 -4 -3 -3 -2 -1 -1 --------- Run | Yrd Mat Min Mat Min Exi Min Mat Fac Was Fac Sto Rec Scr Fac Upp Upp War Pro Fac Upp Upp Zhi Pro Res Res Acc Com Machines Accessed 103 | . 8 2 6 . 1 . 11 6 . 8 6 3 2 11 . . 9 . 7 1 1 5 . 5 . 7 4 Terminals 45 | . 6 . 3 . . . 8 4 . 3 4 . . 4 . . . . 1 1 . . . 2 . 7 2 Fabricators 8 | . . . . . . . . 1 . 1 . . . 3 . . . . 2 . . . . 1 . . . Repair Stations 7 | . . . . . . . . . . 1 1 . . 1 . . . . 1 . . . . 2 . . 1 Recycling Units 11 | . 2 . 1 . . . 1 . . 1 . 2 . 1 . . . . 2 . . . . . . . 1 Scanalyzers 6 | . . . 2 . . . 1 1 . 1 . . . . . . . . 1 . . . . . . . . Garrison Access 5 | . . . . . . . 1 . . 1 1 . . 2 . . . . . . . . . . . . . Total Hacks 265 | . 21 2 15 . 1 . 37 16 . 22 17 7 10 31 . . 13 . 16 1 1 18 . 12 . 16 9 Successful 170 | . 12 2 9 . 1 . 19 7 . 7 8 5 10 20 . . 13 . 10 1 1 18 . 9 . 10 8 Failed 93 | . 8 . 6 . . . 17 9 . 15 9 2 . 11 . . . . 6 . . . . 3 . 6 1 Catastrophic 13 | . . . 1 . . . 2 1 . 4 1 . . 2 . . . . 1 . . . . . . 1 . Database Lockouts 2 | . 1 . . . . . 1 . . . . . . . . . . . . . . . . . . . . Manual 134 | . 21 . 7 . 1 . 26 9 . 9 12 4 . 12 . . . . 10 . . . . 7 . 12 4 Terminals 126 | . 17 . 5 . . . 30 8 . 7 12 . . 16 . . . . 2 1 . . . 6 . 16 6 Fabricators 18 | . . . . . . . . 3 . 2 . . . 6 . . . . 5 . . . . 2 . . . Repair Stations 15 | . . . . . . . . . . 1 3 . . 2 . . . . 3 . . . . 4 . . 2 Recycling Units 26 | . 4 . 2 . . . 2 . . 3 . 6 . 3 . . . . 5 . . . . . . . 1 Scanalyzers 24 | . . . 8 . . . 2 5 . 8 . . . . . . . . 1 . . . . . . . . Garrison Access 10 | . . . . . . . 3 . . 1 2 . . 4 . . . . . . . . . . . . . Terminal Hacks 85 | . 3 2 . . 1 . 8 . . 1 2 1 10 9 . . 13 . 1 1 1 18 . 2 . 7 5 Record 29 | . . . . . . . . . . . . 1 10 3 . . 7 . . 1 . 6 . . . . 1 Part Schematic 4 | . . . . . . . . . . . . . . . . . . . . . . 4 . . . . . Robot Analysis 9 | . 2 . . . . . 2 . . . . . . . . . . . . . . 4 . . . 1 . Prototype ID Bank 10 | . . . . . . . 1 . . . . . . 1 . . 4 . . . . 4 . . . . . Open Door 8 | . . 2 . . . . . . . . . . . . . . 2 . . . 1 . . . . 3 . Level Access Points 1 | . . . . . . . . . . . . . . . . . . . . . . . . . . . 1 Branch Access Points 6 | . . . . . . . . . . 1 1 . . . . . . . 1 . . . . 1 . 1 1 Emergency Access Points 1 | . . . . . . . . . . . . . . 1 . . . . . . . . . . . . . Unreport Threat 3 | . . . . . . . . . . . . . . 1 . . . . . . . . . . . 2 . Locate Traps 7 | . . . . . . . 3 . . . 1 . . 2 . . . . . . . . . . . . 1 Disarm Traps 2 | . . . . . . . 1 . . . . . . 1 . . . . . . . . . . . . . Recall Extermination 1 | . . . . . . . . . . . . . . . . . . . . . . . . 1 . . . Registered Components 2 | . 1 . . . . . 1 . . . . . . . . . . . . . . . . . . . . Proto ID Catalog 1 | . . . . . 1 . . . . . . . . . . . . . . . . . . . . . . Disengage Seal 1 | . . . . . . . . . . . . . . . . . . . . . . . . . . . 1 Fabricator Hacks 5 | . . . . . . . . 2 . . . . . 2 . . . . 1 . . . . . . . . Network Status 4 | . . . . . . . . 1 . . . . . 2 . . . . 1 . . . . . . . . Build 1 | . . . . . . . . 1 . . . . . . . . . . . . . . . . . . . Repair Station Hacks 9 | . . . . . . . . . . . 2 . . 2 . . . . 1 . . . . 3 . . 1 Scan Component 6 | . . . . . . . . . . . 1 . . 1 . . . . 1 . . . . 2 . . 1 Repair 3 | . . . . . . . . . . . 1 . . 1 . . . . . . . . . 1 . . . Recycling Unit Hacks 7 | . 1 . . . . . 1 . . . . 1 . 2 . . . . 2 . . . . . . . . Report Inventory 6 | . 1 . . . . . 1 . . . . 1 . 1 . . . . 2 . . . . . . . . Retrieve Components 1 | . . . . . . . . . . . . . . 1 . . . . . . . . . . . . . Scanalyzer 13 | . . . 6 . . . 1 2 . 4 . . . . . . . . . . . . . . . . . Insert Component 7 | . . . 3 . . . 1 1 . 2 . . . . . . . . . . . . . . . . . Analyze 6 | . . . 3 . . . . 1 . 2 . . . . . . . . . . . . . . . . . Garrison Access Hacks 2 | . . . . . . . . . . 1 . . . 1 . . . . . . . . . . . . . Seal Access 2 | . . . . . . . . . . 1 . . . 1 . . . . . . . . . . . . . Unauthorized Hacks 48 | . 8 . 3 . . . 8 3 . 1 4 3 . 4 . . . . 5 . . . . 4 . 3 2 Terminals 29 | . 6 . 2 . . . 6 2 . . 4 . . 2 . . . . . . . . . 3 . 3 1 Assimilate 1 | . . . . . . . . . . . . . . . . . . . . . . . . 1 . . . Botnet 22 | . 5 . 2 . . . 5 2 . . 3 . . 2 . . . . . . . . . 1 . 1 1 Detonate 1 | . . . . . . . . . . . . . . . . . . . . . . . . . . 1 . Disrupt 1 | . . . . . . . . . . . . . . . . . . . . . . . . . . 1 . Operators 4 | . 1 . . . . . 1 . . . 1 . . . . . . . . . . . . 1 . . . Fabricators 5 | . . . . . . . . 1 . . . . . 1 . . . . 2 . . . . 1 . . . Liberate 5 | . . . . . . . . 1 . . . . . 1 . . . . 2 . . . . 1 . . . Repair Stations . | . . . . . . . . . . . . . . . . . . . . . . . . . . . . Recycling Units 13 | . 2 . 1 . . . 1 . . 1 . 3 . 1 . . . . 3 . . . . . . . 1 Reject 10 | . 2 . 1 . . . 1 . . 1 . 2 . 1 . . . . 2 . . . . . . . . Recyclers 3 | . . . . . . . . . . . . 1 . . . . . . 1 . . . . . . . 1 Scanalyzers . | . . . . . . . . . . . . . . . . . . . . . . . . . . . . Garrison Access 1 | . . . . . . . 1 . . . . . . . . . . . . . . . . . . . . Watchers 1 | . . . . . . . 1 . . . . . . . . . . . . . . . . . . . . Data Cores Recovered . | . . . . . . . . . . . . . . . . . . . . . . . . . . . . Used . | . . . . . . . . . . . . . . . . . . . . . . . . . . . . Hacking Detections 70 | . 6 . 6 . . . 11 6 . 7 5 2 . 9 . . . . 5 1 . . . 5 . 4 3 Full Trace Events 2 | . . . . . . . 1 . . . . . . 1 . . . . . . . . . . . . . Feedback Events . | . . . . . . . . . . . . . . . . . . . . . . . . . . . . Feedback Blocked . | . . . . . . . . . . . . . . . . . . . . . . . . . . . . Robot Schematics Acquired . | . . . . . . . . . . . . . . . . . . . . . . . . . . . . Robots Built . | . . . . . . . . . . . . . . . . . . . . . . . . . . . . Authchips . | . . . . . . . . . . . . . . . . . . . . . . . . . . . . Time . | . . . . . . . . . . . . . . . . . . . . . . . . . . . . Total Robot Build Rating . | . . . . . . . . . . . . . . . . . . . . . . . . . . . . Part Schematics Acquired 7 | . . . 1 . . . . 1 . 1 . . . . . . . . . . . 4 . . . . . Parts Built 2 | . . . . . . . . 2 . . . . . . . . . . . . . . . . . . . Authchips . | . . . . . . . . . . . . . . . . . . . . . . . . . . . . Time 106 | . . . . . . . . 106 . . . . . . . . . . . . . . . . . . . Total Part Build Rating 12 | . . . . . . . . 12 . . . . . . . . . . . . . . . . . . . Parts Repaired 3 | . . . . . . . . . . . 1 . . 1 . . . . . . . . . 1 . . . Time 184 | . . . . . . . . . . . 124 . . 19 . . . . . . . . . 41 . . . Parts Recycled . | . . . . . . . . . . . . . . . . . . . . . . . . . . . . Recycled Matter . | . . . . . . . . . . . . . . . . . . . . . . . . . . . . Retrieved Matter . | . . . . . . . . . . . . . . . . . . . . . . . . . . . . Retrieved Components 4 | . . . . . . . . . . . . . . 4 . . . . . . . . . . . . . Parts Scanalyzed 5 | . . . 1 . . . 1 1 . 2 . . . . . . . . . . . . . . . . . Part Schematics Acquired 3 | . . . 1 . . . . 1 . 1 . . . . . . . . . . . . . . . . . Parts Damaged . | . . . . . . . . . . . . . . . . . . . . . . . . . . . . Bothacking | -11 -10 -10 -9 -9 -9 -8 -8 -7 -7 -7 -7 -7 -7 -5 -5 -5 -5 -4 -4 -4 -4 -4 -3 -3 -2 -1 -1 ------------ Run | Yrd Mat Min Mat Min Exi Min Mat Fac Was Fac Sto Rec Scr Fac Upp Upp War Pro Fac Upp Upp Zhi Pro Res Res Acc Com Used RIF Installer . | . . . . . . . . . . . . . . . . . . . . . . . . . . . . Robots Hacked 21 | . . . . . . . . . . . . . 2 . . . 11 . . . . . . . 2 . 6 Non-combat 3 | . . . . . . . . . . . . . . . . . 2 . . . . . . . . . 1 Combat 18 | . . . . . . . . . . . . . 2 . . . 9 . . . . . . . 2 . 5 Robot Hacks Applied 23 | . . . . . . . . . . . . . 2 . . . 11 . . . . . . . 2 . 8 parse_system 23 | . . . . . . . . . . . . . 2 . . . 11 . . . . . . . 2 . 8 Relay Couplers Released 5 | . . . . . . . . . . . . . . . . . . . . . . . . 3 2 . . Machine Destruction 2 | . . . . . . . . . . . . . . . . . . . . . . . . . 2 . . Programmers 3 | . . . . . . . . . . . . . . . . . . . . . . . . 3 . . . Fabnet Peak Effective % . | . . . . . . . . . . . . . . . . . . . . . . . . . . . . Robots Rewired 5 | . . . . . . . . . . . . . . . . . 5 . . . . . . . . . . Allies Hacked . | . . . . . . . . . . . . . . . . . . . . . . . . . . . . Hacks Repelled . | . . . . . . . . . . . . . . . . . . . . . . . . . . . . Allies | -11 -10 -10 -9 -9 -9 -8 -8 -7 -7 -7 -7 -7 -7 -5 -5 -5 -5 -4 -4 -4 -4 -4 -3 -3 -2 -1 -1 -------- Run | Yrd Mat Min Mat Min Exi Min Mat Fac Was Fac Sto Rec Scr Fac Upp Upp War Pro Fac Upp Upp Zhi Pro Res Res Acc Com Total Allies 26 | . . . . . . . . . 20 . . . . . . . 5 . . . . . . 1 . . . Largest Group 20 | . . . . . . . . . 20 8 . . . . . . 5 . . . . . . 1 . . . Highest-Rated Group 562 | . . . . . . . . . 562 217 . . . . . . 282 . . . . . . 26 . . . Highest-Rated Ally 64 | . . . . . . . . . 35 35 . . . . . . 64 . . . . . . 26 . . . Total Orders 2 | . . . . . . . . . . . . . . . . . . . . . . . . . 2 . . EXPLORE 2 | . . . . . . . . . . . . . . . . . . . . . . . . . 2 . . Ally Attacks 98 | . . . . . . . . . . 92 . . . . . . 6 . . . . . . . . . . Total Damage 3498 | . . . . . . . . . . 3237 . . . . . . 261 . . . . . . . . . . Kills 31 | . . . . . . . . . . 30 . . . . . . 1 . . . . . . . . . . Allies Corrupted . | . . . . . . . . . . . . . . . . . . . . . . . . . . . . Allies Melted 1 | . . . . . . . . . . . . . . . . . . . . . . . . . 1 . . Intel | -11 -10 -10 -9 -9 -9 -8 -8 -7 -7 -7 -7 -7 -7 -5 -5 -5 -5 -4 -4 -4 -4 -4 -3 -3 -2 -1 -1 ------- Run | Yrd Mat Min Mat Min Exi Min Mat Fac Was Fac Sto Rec Scr Fac Upp Upp War Pro Fac Upp Upp Zhi Pro Res Res Acc Com Active Infowar (turns) 10983 | 44 1138 . . 228 438 84 . 207 43 593 554 222 363 626 150 83 983 223 739 140 201 134 260 2638 599 228 65 Optics 6589 | . . . . . . . . . . . . . . 377 150 83 983 223 739 140 201 134 260 2635 599 . 65 Sensors 377 | . . . . . . . . . . . . . . . . . . . . . 164 121 92 . . . . Terrain 637 | . . . . . . . . . . . . . . . . . . . 409 . . . . . . 228 . Structural 2293 | . . . . 228 438 84 . . . . 25 222 363 236 50 83 564 . . . . . . . . . . Seismic 1182 | 44 1138 . . . . . . . . . . . . . . . . . . . . . . . . . . Cloaking 691 | . . . . . . . . . . . . . . . . . . . . . . . . 691 . . . Jamming 2571 | . . . . . . . . 207 43 593 529 . . 117 . . . . 31 . . . . 1051 . . . Robot Analysis Total 9 | . 2 . . . . . 2 . . . . . . . . . . . . . . 4 . . . 1 . Derelict Logs Recovered 4 | . . . . 1 . . . . . . . . . . 1 1 . 1 . . . . . . . . . Drone Launches 2 | . . . . . . . . . . . . . . . . . . . . . . . . . 2 . . Drone Recoveries . | . . . . . . . . . . . . . . . . . . . . . . . . . . . . Exploration | -11 -10 -10 -9 -9 -9 -8 -8 -7 -7 -7 -7 -7 -7 -5 -5 -5 -5 -4 -4 -4 -4 -4 -3 -3 -2 -1 -1 ------------- Run | Yrd Mat Min Mat Min Exi Min Mat Fac Was Fac Sto Rec Scr Fac Upp Upp War Pro Fac Upp Upp Zhi Pro Res Res Acc Com Turns Passed 20664 | 122 1173 886 2048 580 438 990 2169 888 43 593 1118 222 371 673 150 83 983 223 739 140 201 134 260 2638 1343 1124 332 Spaces Moved 22893 | 77 703 534 916 270 281 555 1177 986 86 961 785 266 967 1178 401 285 1803 490 1059 275 321 222 532 3028 2511 1666 558 Core 754 | 11 . . . . . . . . . . 72 . . . . . . 131 522 . . . . 17 . . 1 Treads 73 | . . . . 9 . . . . . . 64 . . . . . . . . . . . . . . . . Legs 96 | . . . . . . . . . . . . . . . . . . . . . . . . . 96 . . Wheels 5931 | 66 703 534 916 261 281 555 1177 454 . . 570 266 130 . . . . 18 . . . . . . . . . Hover 4064 | . . . . . . . . 230 86 961 43 . . . . . . . 372 . 235 147 . 1207 338 431 14 Flight 11975 | . . . . . . . . 302 . . 36 . 837 1178 401 285 1803 341 165 275 86 75 532 1804 2077 1235 543 Fastest Speed 20 | 50 95 140 155 110 155 145 105 34 48 48 48 80 29 27 27 28 28 28 39 40 40 40 37 35 20 20 21 Average Speed 64 | 85 135 151 164 153 155 152 133 80 48 48 97 80 35 28 27 28 28 38 57 40 53 52 39 49 34 29 42 Slowest Speed 550 | 100 140 155 170 320 155 155 170 125 48 48 250 80 80 29 29 28 28 122 110 40 66 68 40 550 120 108 125 Overloaded Moves . | . . . . . . . . . . . . . . . . . . . . . . . . . . . . Propulsion Burnouts . | . . . . . . . . . . . . . . . . . . . . . . . . . . . . Robots Hopped 58 | . . . . . . . . 6 . . . . . 5 . 1 6 5 . . . . 1 6 11 11 6 Potential Cave-ins 26 | . . . . . . . . . . . . . . . . . 19 . . . . . . . 7 . . Cave-ins Triggered 1 | . . . . . . . . . . . . . . . . . . . . . . . . . 1 . . Exploration Rate (%) 52 | 4 87 73 56 38 69 82 74 19 66 28 59 42 60 35 64 56 95 64 26 48 59 64 69 34 48 28 20 Regions Visited 27 Branch Regions 16 Pre-discovered Areas 4 | . . . . 1 . . . . . . . . . . . . . . . . . 3 . . . . . Known Exits Taken 8 | . . . . . . . . . . 1 1 . . 1 . 1 . 1 1 . . . . . 1 1 . Unknown Exits Taken 17 | 1 1 1 1 1 1 1 1 . . . . 1 1 . 1 . 1 . . 1 1 1 1 1 . . . Scrap Searched 20 | . . 1 . 1 . 1 . . . . . . 4 . 4 1 . 2 . 2 1 . 3 . . . . Spaces Dug 127 | . . . . . . . 2 1 . 6 6 . . 14 2 1 1 1 5 5 4 . . 31 18 30 . Terrain Destroyed 235 | . . . . . . . 22 50 . 6 6 . . 14 26 1 1 1 5 5 4 . . 31 19 44 . Melee 125 | . . . . . . . . 1 . 6 6 . . 14 2 1 1 1 5 5 4 . . 31 18 30 . Projectile 23 | . . . . . . . 22 . . . . . . . . . . . . . . . . . 1 . . AOE 87 | . . . . . . . . 49 . . . . . . 24 . . . . . . . . . . 14 . Terrain Rammed . | . . . . . . . . . . . . . . . . . . . . . . . . . . . . Walls Destroyed . | . . . . . . . . . . . . . . . . . . . . . . . . . . . . Machines Disabled . | . . . . . . . . . . . . . . . . . . . . . . . . . . . . Actions | -11 -10 -10 -9 -9 -9 -8 -8 -7 -7 -7 -7 -7 -7 -5 -5 -5 -5 -4 -4 -4 -4 -4 -3 -3 -2 -1 -1 --------- Run | Yrd Mat Min Mat Min Exi Min Mat Fac Was Fac Sto Rec Scr Fac Upp Upp War Pro Fac Upp Upp Zhi Pro Res Res Acc Com Total 27351 | 107 834 582 1180 369 284 645 1605 1070 87 1046 1060 274 989 1469 433 284 2256 509 1168 299 345 239 576 3917 2905 2170 649 Wait 2850 | 5 48 16 36 52 . 38 248 26 . 46 182 . 7 252 . . 404 8 63 20 15 . 28 674 203 420 59 Move 22764 | 76 702 533 915 269 280 554 1176 974 85 960 784 265 966 1167 400 282 1792 481 1058 274 320 221 529 3015 2492 1646 548 Hop 45 | . . . . . . . . 6 . . . . . 5 . 1 4 3 . . . . 1 6 7 8 4 Pick Up 126 | 8 22 3 8 7 1 5 16 6 1 1 4 3 . 1 1 . 2 . 1 . 1 3 4 13 13 1 1 Fast Attach 277 | 7 . 1 12 2 1 5 24 14 . 2 20 3 6 8 5 . 4 5 17 . 1 6 2 38 55 22 17 Attach 70 | . 1 . 3 8 . 2 3 2 1 . 5 . . 1 1 . . 1 4 . 3 2 3 13 9 4 4 Detach 59 | . . . 2 . 1 . 1 3 . . 5 . . 3 1 . 1 2 6 . 1 1 1 8 17 1 5 Swap 76 | . 1 3 20 2 . 4 10 . . . 1 . 1 4 3 . 4 . 2 . . 1 1 8 8 2 1 Drop 260 | . 11 8 32 . 1 10 42 32 . 3 9 3 5 4 6 . 8 1 4 . . 5 3 19 52 . 2 Fire 371 | 11 49 17 138 29 . 26 84 4 . 3 . . . . 2 . . . . . . . . . 6 2 . Melee 410 | . . . . . . . . 3 . 19 50 . 4 24 3 1 37 5 13 5 4 . 4 123 43 64 8 Ram 5 | . . 1 . . . . 1 . . . . . . . . . . 3 . . . . . . . . . Kick . | . . . . . . . . . . . . . . . . . . . . . . . . . . . . Crush . | . . . . . . . . . . . . . . . . . . . . . . . . . . . . Escape Stasis . | . . . . . . . . . . . . . . . . . . . . . . . . . . . . Rewire 1 | . . . . . . 1 . . . . . . . . . . . . . . . . . . . . . Trap 25 | . . . 14 . . . . . . . . . . . 11 . . . . . . . . . . . . Miscellaneous 12 | . . . . . . . . . . 12 . . . . . . . . . . . . . . . . . Route ------- -11/Scrapyard -10/Materials (discovered 5 exits: *Mat x2 / *Min x2 / [*Sub]) -10/Mines (discovered 2 exits: *Mat x2) -9/Materials (discovered 2 exits: *Mat / [*Min]) -9/Mines (discovered 2 exits: *Mat / *Exi) -9/Exiles -8/Mines -8/Materials -7/Factory -7/Waste -7/Factory (discovered 5 exits: [*Fac x2] / *Sto / *Low x2) -7/Storage -7/Recycling -7/Scraptown -5/Factory (discovered 2 exits: *Fac / *Upp) -5/Upper Caves -5/Upper Caves (discovered 2 exits: *Fac / *War) -5/Warlord -4/Proximity Caves -4/Factory (discovered 3 exits: *Upp x2 / Arm) -4/Upper Caves -4/Upper Caves -4/Zhirov -3/Proximity Caves -3/Research (discovered 3 exits: [*Res] / *Tes x2) -2/Research (discovered 2 exits: *Acc / *Qua) -1/Access -1/Command (discovered 2 exits: Sur x2) History --------- Turn | Location | Event 7 | -11/Scrapyard | Discovered new exit (range 16) 123 | -11/Scrapyard | Entered Materials 318 | -10/Materials | Build established: Mutant 381 | -10/Materials | Central database locked down 410 | -10/Materials | Discovered new exit (range 5) 477 | -10/Materials | Discovered new exit (range 6) 478 | -10/Materials | Discovered new exit (range 16) 647 | -10/Materials | Discovered new exit (range 12) 970 | -10/Materials | Discovered new exit (range 7) 1296 | -10/Materials | Entered Mines 1325 | -10/Mines | Met a Derelict bent on vengeance 1478 | -10/Mines | Met a Derelict shopkeep closing up shop 1542 | -10/Mines | Discovered new exit (range 15) 1571 | -10/Mines | Discovered new exit (range 13) 1904 | -10/Mines | Found the Drone Emporium 1915 | -10/Mines | Found Prototype Device 2182 | -10/Mines | Entered Materials 2182 | -9/Materials | Evolved 2 slots: Utility x1, Weapon x1 2532 | -9/Materials | Build established: Tank 2609 | -9/Materials | Discovered new exit (range 16) 3058 | -9/Materials | Build established: Scavenger-Tank 3177 | -9/Materials | Discovered new exit (range 5) 3578 | -9/Materials | Build established: Tank 3774 | -9/Materials | Identified Bomb Drone Bay 4230 | -9/Materials | Entered Mines 4306 | -9/Mines | Discovered new exit (range 5) 4352 | -9/Mines | Learned location of Zion (-6) 4375 | -9/Mines | Assembled infested the area 4438 | -9/Mines | Lost 7 parts (1p2n1u3w) 4567 | -9/Mines | Destroyed 8 combat bots 4570 | -9/Mines | Lost 3 parts (2n1u) 4802 | -9/Mines | Deemed a non-threat by the Exiles lab entrance 4802 | -9/Mines | Discovered new exit (range 6) 4810 | -9/Mines | Entered Exiles 4849 | -9/Exiles | Met 8R-AWN 4871 | -9/Exiles | Build established: Skirmisher 4874 | -9/Exiles | Met EX-HEX 4991 | -9/Exiles | Met EX-DEC 5026 | -9/Exiles | Met EX-BIN 5048 | -9/Exiles | Aligned with FarCom system 5050 | -9/Exiles | Given EX-Vault access code 5090 | -9/Exiles | Opened EX-Vault 5103 | -9/Exiles | Found Gui. Plasma Cannon 5135 | -9/Exiles | Warned to stay clear of 0b10 Research branches 5228 | -9/Exiles | Discovered new exit (range 14) 5248 | -9/Exiles | Left Exiles lab with Gui. Plasma Cannon 5248 | -9/Exiles | Entered Mines 5261 | -8/Mines | Core integrity fell below 50% 5866 | -8/Mines | Build established: Scavenger-Skirmisher 6064 | -8/Mines | Discovered new exit (range 5) 6238 | -8/Mines | Entered Materials 6238 | -8/Materials | Evolved 2 slots: Propulsion x1, Utility x1 6431 | -8/Materials | Garrison activated, responded to threat 6988 | -8/Materials | Discovered new exit (range 11) 7728 | -8/Materials | Build established: Skirmisher 7837 | -8/Materials | Central database locked down 8407 | -8/Materials | Entered Factory 8407 | -7/Factory | Evolved 2 slots: Propulsion x1, Utility x1 8745 | -7/Factory | Discovered new exit (range 12) 8891 | -7/Factory | Identified exit to Storage 9272 | -7/Factory | Fabricated Imp. Plasma Cutter? 9295 | -7/Factory | Sucked down chute 9295 | -7/Factory | Entered Waste 9296 | -7/Waste | Joined by Warlord forces that had cleared the area 9326 | -7/Waste | Discovered new exit (range 12) 9338 | -7/Waste | Entered Factory 9338 | -7/Factory | Accompanied by 8 allies 9443 | -7/Factory | Garrison activated, responded to threat 9445 | -7/Factory | Discovered new exit (range 11) 9602 | -7/Factory | Lost 3 allies 9634 | -7/Factory | Discovered new exit (range 14) 9676 | -7/Factory | Lost 3 allies 9760 | -7/Factory | Build established: Mutant 9834 | -7/Factory | Identified exit to Lower Caves 9842 | -7/Factory | Discovered new exit (range 5) 9844 | -7/Factory | Discovered new exit (range 14) 9931 | -7/Factory | Entered Storage 10020 | -7/Storage | Lost 7 parts (1p4n1u1w) 10149 | -7/Storage | Repaired Broken Vibroblade 10408 | -7/Storage | Met 01-MTF 10481 | -7/Storage | Build established: Scavenger-Gladiator 10670 | -7/Storage | Core integrity fell below 50% 10688 | -7/Storage | Garrison activated, responded to threat 10742 | -7/Storage | Identified exit to Recycling 10950 | -7/Storage | Lost 6 parts (1p4n1u) 11045 | -7/Storage | Used back door to open Recycling access 11049 | -7/Storage | Entered Recycling 11249 | -7/Recycling | Scanned before Scraplab entrance 11258 | -7/Recycling | Discovered new exit (range 11) 11260 | -7/Recycling | Entered Scraplab 11271 | -7/Recycling | Entered Scraptown 11275 | -7/Scraptown | System corruption cleaned by C-Scrubber 11286 | -7/Scraptown | Build established: Scavenger-Mutant 11434 | -7/Scraptown | Discovered new exit (range 5) 11462 | -7/Scraptown | Visited Cave Peace 11475 | -7/Scraptown | Visited Red Mages 11567 | -7/Scraptown | Visited Fellowship of the Rings 11572 | -7/Scraptown | Visited The Evicted 11596 | -7/Scraptown | Visited Assassins FH 11607 | -7/Scraptown | Visited Science Testing Area 11613 | -7/Scraptown | Turned away by UFD registrar 11642 | -7/Scraptown | Entered Factory 11642 | -5/Factory | Evolved 4 slots: Propulsion x1, Utility x3 11676 | -5/Factory | Build established: Scavenger-Sprinter 11984 | -5/Factory | Repaired Cesium-ion Thruster 12117 | -5/Factory | Discovered new exit (range 15) 12120 | -5/Factory | Identified exit to Factory 12277 | -5/Factory | Discovered new exit (range 9) 12282 | -5/Factory | Build established: Scavenger-Ninja 12314 | -5/Factory | Identified exit to Upper Caves 12315 | -5/Factory | Entered Upper Caves 12328 | -5/Upper Caves | Learned Factory trap positions 12457 | -5/Upper Caves | Spotted B-75 Beast 12461 | -5/Upper Caves | Discovered new exit (range 12) 12463 | -5/Upper Caves | Encountered a Warlord checkpoint 12465 | -5/Upper Caves | Entered another Upper Caves area 12477 | -5/Upper Caves | Discovered exit to Factory (range 16) 12506 | -5/Upper Caves | Identified exit to Warlord 12548 | -5/Upper Caves | Entered Warlord 12557 | -5/Warlord | Discovered new exit (range 12) 12567 | -5/Warlord | Opened side exit 12636 | -5/Warlord | Met Warlord 12661 | -5/Warlord | Warlord's base attacked by MAIN.C 12697 | -5/Warlord | Found Prototype Piercing Weapon 12964 | -5/Warlord | Build established: Commander-Sprinter 13011 | -5/Warlord | Warlord forces counterattacked 13077 | -5/Warlord | Spotted Executioner 13077 | -5/Warlord | Spotted Executioner 13100 | -5/Warlord | Destroyed Executioner 13105 | -5/Warlord | Spotted Executioner 13112 | -5/Warlord | Found Prototype Processor 13112 | -5/Warlord | Identified Exp. Core Analyzer 13163 | -5/Warlord | Spotted Striker 13166 | -5/Warlord | Spotted Executioner 13177 | -5/Warlord | Lost 7 allies 13261 | -5/Warlord | Lost 20 allies 13261 | -5/Warlord | Spotted Striker 13261 | -5/Warlord | Spotted Striker 13332 | -5/Warlord | Destroyed Striker 13336 | -5/Warlord | Warlord base infiltrated, sounded retreat 13414 | -5/Warlord | Build established: Scavenger-Sprinter 13481 | -5/Warlord | Spotted B-86 Titan 13493 | -5/Warlord | Spotted Executioner 13531 | -5/Warlord | Entered Proximity Caves 13540 | -4/Proximity Caves | Lost 8 allies 13552 | -4/Proximity Caves | Attracted the attention of an 0b10 checkpoint 13572 | -4/Proximity Caves | Attracted the attention of an 0b10 outpost 13610 | -4/Proximity Caves | Learned Research trap positions 13624 | -4/Proximity Caves | Lost 4 parts (3n1w) 13690 | -4/Proximity Caves | Core integrity fell below 50% 13728 | -4/Proximity Caves | Lost 12 parts (1p7n3u1w) 13744 | -4/Proximity Caves | Discovered exit to Factory (range 19) 13754 | -4/Proximity Caves | Entered Factory 13754 | -4/Factory | Evolved 2 slots: Propulsion x1, Utility x1 13755 | -4/Factory | Loaded intel: 75 trap records 14085 | -4/Factory | Identified Vortex Lance 14384 | -4/Factory | Identified exit to Upper Caves 14384 | -4/Factory | Identified exit to Armory 14493 | -4/Factory | Entered Upper Caves 14518 | -4/Upper Caves | Lost 3 parts (2n1u) 14630 | -4/Upper Caves | Discovered new exit (range 5) 14633 | -4/Upper Caves | Entered another Upper Caves area 14748 | -4/Upper Caves | Build established: Hacker-Mutant 14759 | -4/Upper Caves | Attracted the attention of an 0b10 checkpoint 14827 | -4/Upper Caves | Discovered new exit (range 13) 14834 | -4/Upper Caves | Entered Zhirov 14834 | -4/Zhirov | Discovered new exit (range 3) 14853 | -4/Zhirov | Met Zhirov 14876 | -4/Zhirov | Learned location of Quarantine (-2) 14876 | -4/Zhirov | Learned location of Testing (-3) 14876 | -4/Zhirov | Learned location of Command (-1) 14885 | -4/Zhirov | Zhirov requested help retrieving the SGEMP Prototype 14901 | -4/Zhirov | Found Alien Artifact 14901 | -4/Zhirov | Identified Integrated Dissipator 14901 | -4/Zhirov | Installed Integrated Dissipator, increased core heat dissipation (+20) 14968 | -4/Zhirov | Entered Proximity Caves 15091 | -3/Proximity Caves | Lost 3 parts (1n2u) 15214 | -3/Proximity Caves | Discovered new exit (range 4) 15228 | -3/Proximity Caves | Entered Research 15228 | -3/Research | Evolved 2 slots: Power x1, Utility x1 15229 | -3/Research | Loaded intel: 69 trap records 15409 | -3/Research | Found Prototype Processor 15409 | -3/Research | Identified Spectral Analyzer 15503 | -3/Research | Identified exit to Testing 15684 | -3/Research | Repaired Broken Vibroblade 15684 | -3/Research | Build established: Hacker-Gladiator 16771 | -3/Research | Lost 3 parts (1p1n1u) 17071 | -3/Research | System corruption reached 10% 17115 | -3/Research | Core integrity fell below 50% 17148 | -3/Research | Lost 11 parts (3p7n1u) 17791 | -3/Research | Discovered new exit (range 5) 17866 | -3/Research | Entered another Research area 17866 | -2/Research | Warlord forces began assault on 0b10 17866 | -2/Research | Evolved 2 slots: Propulsion x1, Utility x1 17962 | -2/Research | Crushed by falling debris 17962 | -2/Research | System corruption reached 10% 17976 | -2/Research | Research machine network offline 17993 | -2/Research | Lost 5 parts (4u1w) 18060 | -2/Research | Build established: Scavenger-Gladiator 18208 | -2/Research | Found Prototype Processor 18208 | -2/Research | Identified Exp. Melee Analysis Suite 18229 | -2/Research | Met up with Warlord 18369 | -2/Research | Borebot progress halted 18386 | -2/Research | Spotted Striker 18479 | -2/Research | Borebot progress halted 18516 | -2/Research | Spotted Striker 18535 | -2/Research | Borebot progress halted 18546 | -2/Research | Spotted Striker 18549 | -2/Research | Spotted Striker 18551 | -2/Research | Spotted Striker 18604 | -2/Research | Spotted Striker 18605 | -2/Research | Found Prototype Device 18605 | -2/Research | Identified Exp. ECM Suite 18607 | -2/Research | Spotted Striker 18672 | -2/Research | Build established: Scavenger-Sprinter 18785 | -2/Research | Spotted Executioner 18785 | -2/Research | Spotted Striker 18808 | -2/Research | Spotted Executioner 18814 | -2/Research | Spotted Striker 18830 | -2/Research | Found Prototype Processor 18830 | -2/Research | Identified Exp. Core Analyzer 18839 | -2/Research | Found Exp. Core Analyzer 18858 | -2/Research | Lost 3 parts (2n1u) 18870 | -2/Research | Warlord invited to help at Command 18870 | -2/Research | Given Cave Seal Controls access code 18870 | -2/Research | Found Prototype Device 18870 | -2/Research | Identified Adv. Kinecellerator 19131 | -2/Research | Discovered new exit (range 16) 19164 | -2/Research | Discovered new exit (range 13) 19190 | -2/Research | Identified exit to Access 19195 | -2/Research | Identified exit to Quarantine 19209 | -2/Research | Entered Access 19209 | -1/Access | Evolved 2 slots: Utility x2 19278 | -1/Access | Lost 3 allies 19530 | -1/Access | Build established: Hacker-Sprinter 19841 | -1/Access | Lost 14 parts (2p5n4u3w) 19903 | -1/Access | System corruption reached 10% 19956 | -1/Access | Lost 6 parts (1p4n1u) 20059 | -1/Access | Identified exit to Command 20275 | -1/Access | Spotted B-99 Colossus 20315 | -1/Access | Core integrity fell below 50% 20321 | -1/Access | Lost 12 parts (1p6n5u) 20333 | -1/Access | Entered Command 20379 | -1/Command | Identified exit to Surface 20389 | -1/Command | Disengaged cave seal 20389 | -1/Command | Derelicts emerged from the dark tunnel 20389 | -1/Command | Welcomed Warlord to Command 20537 | -1/Command | Build established: Wizard-Mutant 20663 | -1/Command | Core integrity fell below 20% 20665 | -1/Command | Destroyed by H-88 Terminator with KE Penetrator Last Messages --------------- 20664_ Adv. Hacking Suite destroyed. 20664_ Phase Shifter blown off. 20664_ Enh. Hardcell Cannon blown off. 20664_ Cmb. Linear Gravjet blown off. 20664_ Adv. Hacking Suite blown off. 20664_ E-15 Imp destroyed. 20664_ Adv. Target Analyzer blown off. 20664_ Imp. System Shield blown off. 20664_ Imp. Hacking Suite blown off. 20664_ E-15 Imp destroyed. 20664_ Slug penetrates S-43 Plague. 20664_ Adv. System Shield destroyed. 20665_ Acquired Segregator. 20665_ Imp. Hacking Suite blown off. 20665_ Segregator blown off. 20665_ E-15 Imp destroyed. 20665_ C-30 ARC bursts open, deploying its payload. 20665_ P-80 Master unfolds itself. 20665_ Penetrated by Slug. Map ----- +----------------------------------------------------+ | ?????????????????????????????????????????????????? | | ?????????????????????????????????????????????????? | | ?????????????????????????????????????????????????? | | ?????????????????????????????????????????????????? | | ?????????????????????????????????????????????????? | | ?????????????????????????????????????????????????? | | ???????????????????????????????????????? ????????? | | ?????????????????????????? ????????????? ????????? | | ?????????????????????????? ????????????# ????????? | | ???????????????????????###+#############+###?????? | | ???????????????????????#xddi# b# # ??????? | | ???????????????????????#x di#l b#h h # ??????? | | ????????????????????????x i# lb ?h h # ??????? | | ????????????????????????d i?llbb?hh # ??????? | | ????????????????????????xd%i? lb?hhh # ??????? | | ????????????????????????xx%i?lbbb? ? ??????? | | ????????????????????????#pg#?#lb#?#hh#?# #??????? | | ????????????????????????#gh#?#l #?#hh#?# %#??????? | | ????????????????????????#hd#?#l # #h ### #????### | | ????????????????????????#pb#?#l ## h## *###### | | ????????????????????????#pg#?#bb#?# h h * = ## | | ????????????????????????#hp#?# #?#h ##= = | | ????????????????????????#hs#?#l # #hh#?#[ | | ???????????????????????##;s###l ### = # | | ???????????????????????# !s=p shsh* s | | ???????????????????????#=@s!p p hss s ! | | ???????????????????????#!]%sp sp h% g !sss /%= | | ???????????????????????#=eh%pppg gg ss gs g /% | | ???????????????????????##h/###p/## gg##%g!! == | | ????????????????????????#ph#?#pp###g # #[g! ]% | | ????????????????????????#s #?# p#?#g ###ggg *! | | ????????????????????????#h%#?#p #?#gg###g=# | | ????????????????????????#hh#?#pp#?#gg#?#gg# # # | | ????????????????????????#x%#?#pp#?#gg#?#gg ### ### | | ????????????????????????#x #?#p #?# g#?#g*#??###?? | | ????????????????????????#sC#?# #?# g#?#%=#??????? | | ????????????????????????l gg? pp? gg?g[ ??????? | | ????????????????????????gg%p? p ? g g% % ??????? | | ????????????????????????xpgC? p ? #% ??????? | | ????????????????????????xgCC? ?% # ??????? | | ???????????????????????#x sg# # # ??????? | | ????????????????????????x gs# ? # ??????? | | ???????????????????????####################??????? | | ?????????????????????????????????????????????????? | | ?????????????????????????????????????????????????? | | ?????????????????????????????????????????????????? | | ?????????????????????????????????????????????????? | | ?????????????????????????????????????????????????? | | ?????????????????????????????????????????????????? | | ?????????????????????????????????????????????????? | +----------------------------------------------------+ Best States ------------- Heat Dissipation 91 Energy Generation 49 Energy Capacity 580 Matter Stores 300 Matter Capacity 300 Sight Range 23 Robot Scan Range 19 Terrain Scan Range 24 Terrain Scan Density 110 Jamming Range 16 Cloak Strength 3 Power Amplification 40 Additional Mass Support 9 Corruption Block 40 Armor Coverage 300 Core Shielding 40 Propulsion Shielding 66 Utility Shielding 66 Evasion (%) 66 Melee Accuracy 28 Target Analysis 12 Core Analysis 12 Armor Integrity Analysis 40 Recoil Reduction 4 Offensive Hacking 64 Defensive Hacking 40 Authchip Count 3 Item Schematics ----------------- Imp. Assault Rifle | -9/Materials | Scanalyzed Lgt. Deuterium Engine | -7/Factory | Scanalyzed Vibroblade | -7/Factory | Scanalyzed Assault Drone Bay | -4/Zhirov | Free Exp. Heat Sink | -4/Zhirov | Free Exp. Optical Array | -4/Zhirov | Free Imp. Arc Thrower | -4/Zhirov | Free Robot Schematics ------------------ None Fabricated ------------ Imp. Plasma Cutter | x2 | -7/Factory | Preloaded Repaired ---------- Vibroblade | 18% | -7/Storage | Broken Cesium-ion Thruster | 32% | -5/Factory Vibroblade | 50% | -3/Research | Broken Alien Tech Used ----------------- Integrated Dissipator Achievements -------------- None Challenges ------------ None Game ------ Seed HackingCloakNukerbomber Manual? 1 Play Time 05:01:07 Cumulative 334.6 hours Start 2025.08.21 @ 17:48:46 End 2025.08.22 @ 18:36:31 Sessions 8 Manual Loads 0 Difficulty Rogue Special Mode None Game No. 286 Rogue 286 Adventurer 0 Explorer 0 Win Type - Total 2 Types 2/0/0/0/0/0/0/0/0/0 Lore% 73 Gallery% 67 Achievement% 53 Wizard Run 0 Options --------- Layout 2 ASCII 1 Keyboard 1 Movement Numpad Keybinds 0 Fullscreen 2 Font 32/TamsynBold Map View 50x44 Zoom Use 0% Tactical HUD 1 Map Filters NONE Filters NONE Steam 1 RUN: 73cb934e-e818-47de-975a-59e300f4c9ec